fUSD/lending_fUSD_20241022
["ID","MTS","AMOUNT","RATE_DAILY","PERIOD"]
[340631483,1729558250810,-1435.98,0.0005178,120]
[340631484,1729558250819,-1809.91,0.0005178,120]
[340631485,1729558250829,-907.62,0.0005178,120]
[340631486,1729558250840,-1884.17,0.0005178,120]
[340631487,1729558250850,-1365.41,0.00051815,120]
[340631488,1729558250860,-1613.29,0.00051815,120]
[340631489,1729558250869,-854.56,0.00051815,120]
[340631490,1729558250879,-1275.3,0.00051815,120]
[340631491,1729558250888,-1161.93,0.00051815,120]
[340631492,1729558250898,-620.64,0.00051815,120]
[340631493,1729558250908,-646.64251026,0.000519,31]
[340631494,1729558250917,-2626.98585444,0.000519,120]
[340631495,1729558250927,-151.0,0.00052,120]
[340631496,1729558250936,-500.0,0.00052,120]
[340631497,1729558250946,-150.0,0.00052,120]
[340631498,1729558250955,-75087.62916484,0.00052,120]
[340631499,1729558250964,-3311.96791914,0.00052,120]
[340631500,1729558250974,-1300.0,0.00052,90]
[340631501,1729558250984,-1091.07,0.00052054,30]
[340631502,1729558250994,-1091.07,0.00052054,30]
[340631503,1729558251003,-1091.07,0.00052054,30]
[340631504,1729558251110,-1091.07,0.00052054,30]
[340631505,1729558251119,-1091.07,0.00052054,30]
[340631506,1729558251129,-1091.07,0.00052054,30]
[340631507,1729558251138,-1091.07,0.00052054,30]
[340631508,1729558251147,-1091.07,0.00052054,30]
[340631509,1729558251156,-1091.07,0.00052054,30]
[340631510,1729558251165,-1091.07,0.00052054,30]
[340631511,1729558251174,-1091.07,0.00052054,30]
[340631512,1729558251183,-1091.07,0.00052054,30]
[340631513,1729558251192,-1091.07,0.00052054,30]
[340631514,1729558251201,-1091.07,0.00052054,30]
[340631515,1729558251210,-1091.07,0.00052054,30]
[340631516,1729558251220,-1091.07,0.00052054,30]
[340631517,1729558251230,-1091.07,0.00052054,30]
[340631518,1729558251244,-1091.07,0.00052054,30]
[340631519,1729558251253,-1091.07,0.00052054,30]
[340631520,1729558251263,-1091.07,0.00052054,30]
[340631521,1729558251272,-1091.07,0.00052054,30]
[340631522,1729558251282,-1091.07,0.00052054,30]
[340631523,1729558251291,-1091.07,0.00052054,30]
[340631524,1729558251301,-1091.13562143,0.00052054,30]
[340631525,1729558251310,-3285.7,0.00052054,120]
[340631526,1729558251320,-1371.57,0.00052054,120]
[340631527,1729558251329,-1180.47,0.00052054,120]
[340631528,1729558251339,-1289.05,0.00052054,120]
[340631529,1729558251349,-612.02,0.00052054,120]
[340631530,1729558251359,-661.5,0.00052054,120]
[340631531,1729558251368,-631.18,0.00052054,120]
[340631532,1729558251378,-1253.05,0.00052054,120]
[340631533,1729558251388,-1066.9,0.00052054,120]
[340631534,1729558251397,-1565.82,0.00052054,120]
[340631535,1729558251406,-785.94,0.00052054,120]
[340631536,1729558251415,-940.26,0.00052054,7]
[340631537,1729558251425,-1288.9,0.00052054,120]
[340631538,1729558251434,-1458.87,0.00052054,120]
[340631539,1729558251443,-686.0,0.00052054,120]
[340631540,1729558251452,-1291.5,0.00052054,120]
[340631541,1729558251461,-1436.02,0.00052054,120]
[340631542,1729558251471,-1435.98,0.00052054,120]
[340631543,1729558251480,-1809.91,0.00052054,120]
[340631544,1729558251489,-907.62,0.00052054,120]
[340631545,1729558251499,-1884.17,0.00052054,120]
[340631546,1729558251508,-1365.41,0.00052089,120]
[340631547,1729558251519,-1613.29,0.00052089,120]
[340631548,1729558251529,-854.56,0.00052089,120]
[340631549,1729558251538,-1275.3,0.00052089,120]
[340631550,1729558251547,-1161.93,0.00052089,120]
[340631551,1729558251556,-620.64,0.00052089,120]
[340631552,1729558251566,-150.0,0.000521,120]
[340631553,1729558251575,-710.092,0.00052195,95]
[340631554,1729558251584,-457.87,0.00052231,2]
[340631555,1729558251594,-1371.57,0.00052328,120]
[340631556,1729558251603,-1180.47,0.00052328,120]
[340631557,1729558251612,-1289.05,0.00052328,120]
[340631558,1729558251621,-612.02,0.00052328,120]
[340631559,1729558251630,-661.5,0.00052328,120]
[340631560,1729558251640,-631.18,0.00052328,120]
[340631561,1729558251650,-1253.05,0.00052328,120]
[340631562,1729558251659,-1066.9,0.00052328,120]
[340631563,1729558251669,-1565.82,0.00052328,120]
[340631564,1729558251679,-785.94,0.00052328,120]
[340631565,1729558251688,-940.26,0.00052328,7]
[340631566,1729558251698,-1288.9,0.00052328,120]
[340631567,1729558251707,-1458.87,0.00052328,120]
[340631568,1729558251717,-686.0,0.00052328,120]
[340631569,1729558251726,-1291.5,0.00052328,120]
[340631570,1729558251736,-1436.02,0.00052328,120]
[340631571,1729558251746,-1435.98,0.00052328,120]
[340631572,1729558251755,-1809.91,0.00052328,120]
[340631573,1729558251764,-907.62,0.00052328,120]
[340631574,1729558251774,-1884.17,0.00052328,120]
[340631575,1729558251783,-1365.41,0.00052363,120]
[340631576,1729558251792,-1613.29,0.00052363,120]
[340631577,1729558251802,-854.56,0.00052363,120]
[340631578,1729558251812,-1275.3,0.00052363,120]
[340631579,1729558251822,-1161.93,0.00052363,120]
[340631580,1729558251831,-620.64,0.00052363,120]
[340631581,1729558251842,-3576.90292473,0.000525,120]
[340631582,1729558251852,-223.48,0.000525,120]
[340631583,1729558251862,-251.26577768,0.0005255,120]
[340631584,1729558251871,-151.0,0.00052575,120]
[340631585,1729558251881,-1371.57,0.00052602,120]
[340631586,1729558251890,-1180.47,0.00052602,120]
[340631587,1729558251899,-1289.05,0.00052602,120]
[340631588,1729558251909,-612.02,0.00052602,120]
[340631589,1729558251918,-661.5,0.00052602,120]
[340631590,1729558251927,-631.18,0.00052602,120]
[340631591,1729558251936,-1253.05,0.00052602,120]
[340631592,1729558251946,-1066.9,0.00052602,120]
[340631593,1729558251956,-1565.82,0.00052602,120]
[340631594,1729558251965,-785.94,0.00052602,120]
[340631595,1729558251975,-940.26,0.00052602,7]
[340631596,1729558251986,-1288.9,0.00052602,120]
[340631597,1729558251995,-1458.87,0.00052602,120]
[340631598,1729558252005,-686.0,0.00052602,120]
[340631599,1729558252015,-1291.5,0.00052602,120]
[340631600,1729558252025,-1436.02,0.00052602,120]
[340631601,1729558252034,-1435.98,0.00052602,120]
[340631602,1729558252044,-1809.91,0.00052602,120]
[340631603,1729558252054,-907.62,0.00052602,120]
[340631604,1729558252063,-1884.17,0.00052602,120]
[340631605,1729558252072,-1365.41,0.00052637,120]
[340631606,1729558252081,-1613.29,0.00052637,120]
[340631607,1729558252091,-854.56,0.00052637,120]
[340631608,1729558252099,-1275.3,0.00052637,120]
[340631609,1729558252109,-1161.93,0.00052637,120]
[340631610,1729558252118,-620.64,0.00052637,120]
[340631611,1729558252128,-2626.98585444,0.00052643,120]
[340631612,1729558252137,-254.26057,0.000527,120]
[340631613,1729558252147,-150.0,0.000527,120]
[340631614,1729558252156,-1383.13371611,0.000528,120]
[340631615,1729558252165,-1371.70232296,0.00052876,120]
[340631616,1729558252175,-1180.52920923,0.00052876,120]
[340631617,1729558252184,-1289.05,0.00052876,120]
[340631618,1729558252193,-612.16057535,0.00052876,120]
[340631619,1729558252203,-661.534636,0.00052876,120]
[340631620,1729558252213,-631.331365,0.00052876,120]
[340631621,1729558252223,-1253.05,0.00052876,120]
[340631622,1729558252232,-1067.03044313,0.00052876,120]
[340631623,1729558252242,-1566.01820459,0.00052876,120]
[340631624,1729558252251,-785.94,0.00052876,120]
[340631625,1729558252261,-940.26,0.00052876,7]
[340631626,1729558252271,-1288.90941469,0.00052876,120]
[340631627,1729558252279,-1458.92997302,0.00052876,120]
[340631628,1729558252289,-686.00884646,0.00052876,120]
[340631629,1729558252298,-1291.53937292,0.00052876,120]
[340631630,1729558252308,-1436.02,0.00052876,120]
[340631631,1729558252318,-1436.05371496,0.00052876,120]
[340631632,1729558252327,-1809.91,0.00052876,120]
[340631633,1729558252338,-907.62,0.00052876,120]
[340631634,1729558252347,-1884.23239702,0.00052876,120]
[340631635,1729558252356,-1365.41,0.00052911,120]
[340631636,1729558252366,-1613.29,0.00052911,120]
[340631637,1729558252376,-854.56,0.00052911,120]
[340631638,1729558252385,-1275.3,0.00052911,120]
[340631639,1729558252395,-1161.93,0.00052911,120]
[340631640,1729558252404,-620.64,0.00052911,120]
[340631641,1729558252413,-157.84,0.00052968,2]
[340631642,1729558252422,-1000.0,0.00052999,120]
[340631643,1729558252431,-628.14269082,0.00053,120]
[340631644,1729558252440,-500.0,0.00053,120]
[340631645,1729558252450,-570.41057319,0.00053,2]
[340631646,1729558252459,-200.0,0.00053,120]
[340631647,1729558252470,-500.0,0.00053,120]
[340631648,1729558252479,-150.0,0.00053,120]
[340631649,1729558252488,-454.81,0.00053,60]
[340631650,1729558252498,-15000.0,0.00053,30]
[340631651,1729558252507,-1289.2031868,0.0005315,120]
[340631652,1729558252517,-1253.05542141,0.0005315,120]
[340631653,1729558252527,-786.1209961,0.0005315,120]
[340631654,1729558252537,-940.39434722,0.0005315,7]
[340631655,1729558252546,-1436.06389432,0.0005315,120]
[340631656,1729558252556,-1809.9738745,0.0005315,120]
[340631657,1729558252565,-907.64765267,0.0005315,120]
[340631658,1729558252574,-151.0,0.00053151,120]
[340631659,1729558252585,-1365.42401826,0.00053185,120]
[340631660,1729558252595,-1613.37571476,0.00053185,120]
[340631661,1729558252604,-854.62821065,0.00053185,120]
[340631662,1729558252614,-1275.4050745,0.00053185,120]
[340631663,1729558252624,-1161.96929791,0.00053185,120]
[340631664,1729558252633,-620.80662103,0.00053185,120]
[340631665,1729558252642,-442.15170643,0.0005331,2]
[340631666,1729558252652,-1066.57865057,0.00053345,2]
[340631667,1729558252670,-4943.75780597,0.00053345,2]
[340631668,1729558252681,-2626.98585444,0.00053387,120]
[340631669,1729558252690,-12000.0,0.00053493,8]
[340631670,1729558252700,-151.0,0.00053726,120]
[340631671,1729558252710,-150.0,0.000539,120]
[340631672,1729558252719,-600.0,0.000539,19]
[340631673,1729558252729,-50000.0,0.00054,64]
[340631674,1729558252739,-300.0,0.00054,120]
[340631675,1729558252748,-500.0,0.00054,120]
[340631676,1729558252758,-5000.0,0.00054,120]
[340631677,1729558252768,-17849.49013487,0.00054,120]
[340631678,1729558252779,-4018.0,0.00054,2]
[340631679,1729558252788,-150.0,0.00054,120]
[340631680,1729558252798,-5000.0,0.00054,7]
[340631681,1729558252807,-304000.0,0.00054,120]
[340631682,1729558252817,-10000.0,0.00054,60]
[340631683,1729558252827,-2626.98585444,0.0005413,120]
[340631684,1729558252838,-1000.0,0.000543,120]
[340631685,1729558252847,-151.0,0.00054301,120]
[340631686,1729558252857,-162.78171,0.000544,120]
[340631687,1729558252868,-457.87,0.00054494,2]
[340631688,1729558252877,-150.0,0.0005463,40]
[340631689,1729558252887,-968.19,0.00054794,120]
[340631690,1729558252897,-8058.0,0.00054794,120]
[340631691,1729558252906,-500.0,0.00054794,120]
[340631692,1729558252916,-500.0,0.00054794,120]
[340631693,1729558252925,-500.0,0.00054794,120]
[340631694,1729558252935,-500.0,0.00054794,120]
[340631695,1729558252944,-500.0,0.00054794,120]
[340631696,1729558252954,-500.0,0.00054794,120]
[340631697,1729558252963,-500.0,0.00054794,120]
[340631698,1729558252973,-500.0,0.00054794,120]
[340631699,1729558252982,-500.0,0.00054794,120]
[340631700,1729558252992,-500.0,0.00054794,120]
[340631701,1729558253001,-500.0,0.00054794,120]
[340631702,1729558253011,-500.0,0.00054794,120]
[340631703,1729558253020,-500.0,0.00054794,120]
[340631704,1729558253029,-500.0,0.00054794,120]
[340631705,1729558253039,-513.8564664,0.00054794,120]
[340631706,1729558253048,-500.0,0.00054794,120]
[340631707,1729558253057,-500.0,0.00054794,120]
[340631708,1729558253067,-500.0,0.00054794,120]
[340631709,1729558253076,-500.0,0.00054794,120]
[340631710,1729558253086,-500.0,0.00054794,120]
[340631711,1729558253095,-500.0,0.00054794,120]
[340631712,1729558253104,-500.0,0.00054794,120]
[340631713,1729558253114,-500.0,0.00054794,120]
[340631714,1729558253124,-500.0,0.00054794,120]
[340631715,1729558253133,-500.0,0.00054794,120]
[340631716,1729558253143,-438.03560838,0.00054794,120]
[340631717,1729558253152,-533.0,0.00054795,120]
[340631718,1729558253161,-506.0,0.00054795,120]
[340631719,1729558253171,-500.0,0.00054795,120]
[340631720,1729558253180,-970.0,0.00054795,120]
[340631721,1729558253190,-788.0,0.00054795,120]
[340631722,1729558253200,-547.0,0.00054795,120]
[340631723,1729558253209,-1000.0,0.000548,120]
[340631724,1729558253218,-1214.97736991,0.00054843,120]
[340631725,1729558253227,-1214.97736991,0.00054852,120]
[340631726,1729558253239,-501.71804705,0.00054853,120]
[340631727,1729558253248,-501.71804705,0.00054859,120]
[340631728,1729558253259,-1214.97736991,0.00054859,120]
[340631729,1729558253269,-2626.98585444,0.00054873,120]
[340631730,1729558253278,-151.0,0.00054877,120]
[340631731,1729558253288,-1000.0,0.00054896,120]
[340631732,1729558253298,-6101.99948602,0.000549,120]
[340631733,1729558253307,-454.81,0.000549,60]
[340631734,1729558253316,-8848.36445084,0.0005491,120]
[340631735,1729558253326,-501.71804705,0.00054912,120]
[340631736,1729558253336,-706.49541853,0.00054913,120]
[340631737,1729558253346,-706.49541853,0.00054923,120]
[340631738,1729558253356,-8848.36445084,0.00054929,120]
[340631739,1729558253366,-8848.36445084,0.00054934,120]
[340631740,1729558253375,-8058.0,0.00054986,120]
[340631741,1729558253385,-706.49541853,0.00054991,120]
[340631742,1729558253395,-1000.0,0.00054999,120]
[340631743,1729558253404,-13189.45186227,0.00055,120]
[340631744,1729558253413,-12500.8210433,0.00055,5]
[340631745,1729558253424,-83590.0,0.00055,15]
[340631746,1729558253434,-50539.45873084,0.00055,30]
[340631747,1729558253443,-208.23961109,0.00055,120]
[340631748,1729558253453,-12500.007881,0.00055,30]
[340631749,1729558253462,-150.0,0.00055,30]
[340631750,1729558253472,-5000.0,0.00055,120]
[340631751,1729558253482,-500.0,0.00055,120]
[340631752,1729558253491,-1000.0,0.00055,120]
[340631753,1729558253501,-10000.0,0.00055,120]
[340631754,1729558253511,-150.0,0.00055,120]
[340631755,1729558253521,-10000.0,0.00055,14]
[340631756,1729558253531,-396.34508409,0.00055,120]
[340631757,1729558253540,-196.65370044,0.00055,120]
[340631758,1729558253549,-2279.0,0.00055,5]
[340631759,1729558253559,-20099.89108907,0.00055,120]
[340631760,1729558253569,-11300.0,0.00055,120]
[340631761,1729558253579,-169.00426781,0.00055093,59]
[340631762,1729558253590,-8058.0,0.00055178,120]
[340631763,1729558253601,-968.19,0.00055342,120]
[340631764,1729558253610,-8058.0,0.00055369,120]
[340631765,1729558253620,-151.0,0.00055452,120]
[340631766,1729558253629,-159.26545528,0.00055461,33]
[340631767,1729558253639,-3599.4905815,0.00055517,2]
[340631768,1729558253649,-24271.1264659,0.00055517,2]
[340631769,1729558253659,-2624.1685054,0.00055517,2]
[340631770,1729558253668,-2625.7888539,0.00055517,2]
[340631771,1729558253678,-11226.8517404,0.00055517,2]
[340631772,1729558253687,-988.1116846,0.00055517,2]
[340631773,1729558253697,-1156.49049906,0.00055555,120]
[340631774,1729558253707,-2000728.81234644,0.00055555,120]
[340631775,1729558253717,-8058.0,0.00055561,120]
[340631776,1729558253726,-50000.0,0.00055597,56]
[340631777,1729558253735,-2626.98585444,0.00055617,120]
[340631778,1729558253744,-212.69072,0.000557,120]
[340631779,1729558253754,-8058.0,0.00055753,120]
[340631780,1729558253763,-968.19,0.0005589,120]
[340631781,1729558253901,-203.29,0.00055918,120]
[340631782,1729558253911,-8058.0,0.00055945,120]
[340631783,1729558253921,-1000.0,0.00055999,120]
[340631784,1729558253930,-580.0,0.00056,14]
[340631785,1729558253940,-500.0,0.00056,120]
[340631786,1729558253950,-4173.68671775,0.00056,120]
[340631787,1729558253959,-150.0,0.00056,120]
[340631788,1729558253968,-151.0,0.00056027,120]
[340631789,1729558253978,-8058.0,0.00056136,120]
[340631790,1729558253988,-8058.0,0.00056328,120]
[340631791,1729558253997,-2626.98585444,0.0005636,120]
[340631792,1729558254007,-161.14,0.00056387,120]
[340631793,1729558254016,-968.19,0.00056438,120]
[340631794,1729558254025,-8058.0,0.0005652,120]
[340631795,1729558254035,-151.0,0.00056603,120]
[340631796,1729558254044,-151.0,0.0005663,120]
[340631797,1729558254054,-1236.21175173,0.00056686,120]
[340631798,1729558254063,-8058.0,0.00056712,120]
[340631799,1729558254072,-457.87,0.00056758,2]
[340631800,1729558254082,-8058.0,0.00056904,120]
[340631801,1729558254092,-968.19,0.00056986,120]
[340631802,1729558254101,-300.0,0.00057,120]
[340631803,1729558254111,-500.0,0.00057,120]
[340631804,1729558254121,-500.0,0.00057,120]
[340631805,1729558254131,-150.0,0.00057,120]
[340631806,1729558254140,-2279.0,0.00057,6]
[340631807,1729558254150,-15000.0,0.00057,30]
[340631808,1729558254159,-15406.37,0.00057,90]
[340631809,1729558254169,-8058.0,0.00057095,120]
[340631810,1729558254179,-454.81,0.000571,60]
[340631811,1729558254188,-2626.98585444,0.00057103,120]
[340631812,1729558254198,-151.0,0.00057178,120]
[340631813,1729558254207,-8058.0,0.00057287,120]
[340631814,1729558254216,-8058.0,0.00057479,120]
[340631815,1729558254226,-152.0,0.00057507,3]
[340631816,1729558254237,-257.36356376,0.00057507,5]
[340631817,1729558254249,-968.19,0.00057534,120]
[340631818,1729558254258,-8058.0,0.00057671,120]
[340631819,1729558254267,-151.0,0.00057753,120]
[340631820,1729558254276,-150.0,0.0005776,40]
[340631821,1729558254286,-2626.98585444,0.00057847,120]
[340631822,1729558254295,-8058.0,0.00057863,120]
[340631823,1729558254305,-6318.76350153,0.000579,120]
[340631824,1729558254314,-500.0,0.00058,120]
[340631825,1729558254323,-5000.0,0.00058,120]
[340631826,1729558254332,-18759.92817381,0.00058,30]
[340631827,1729558254344,-150.0,0.00058,120]
[340631828,1729558254354,-8188.70262835,0.00058,120]
[340631829,1729558254364,-192408.95777597,0.00058,120]
[340631830,1729558254374,-43840.13354745,0.00058,120]
[340631831,1729558254383,-2082.0,0.00058,120]
[340631832,1729558254392,-8058.0,0.00058054,120]
[340631833,1729558254401,-968.19,0.00058082,120]
[340631834,1729558254410,-627.20710622,0.0005822,120]
[340631835,1729558254419,-8058.0,0.00058246,120]
[340631836,1729558254429,-151.0,0.00058329,120]
[340631837,1729558254439,-8058.0,0.00058438,120]
[340631838,1729558254448,-56100.19366366,0.000585,120]
[340631839,1729558254458,-8000.001,0.0005857,120]
[340631840,1729558254468,-169.00426781,0.0005859,73]
[340631841,1729558254478,-2626.98585444,0.0005859,120]
[340631842,1729558254488,-1066.57865057,0.0005859,2]
[340631843,1729558254497,-4943.75780597,0.0005859,2]
[340631844,1729558254507,-968.19,0.0005863,120]
[340631845,1729558254516,-8058.0,0.0005863,120]
[340631846,1729558254527,-3860.3634532,0.0005864,2]
[340631847,1729558254536,-26030.1749531,0.0005864,2]
[340631848,1729558254545,-2814.3549661,0.0005864,2]
[340631849,1729558254555,-2816.0927493,0.0005864,2]
[340631850,1729558254565,-12040.5171711,0.0005864,2]
[340631851,1729558254574,-1059.7250218,0.0005864,2]
[340631852,1729558254583,-4121.236325,0.0005865,2]
[340631853,1729558254593,-27789.2234402,0.0005865,2]
[340631854,1729558254604,-3004.5414268,0.0005865,2]
[340631855,1729558254613,-3006.3966446,0.0005865,2]
[340631856,1729558254624,-12854.1826018,0.0005865,2]
[340631857,1729558254633,-1131.338359,0.0005865,2]
[340631858,1729558254642,-210106.68608088,0.0005868,120]
[340631859,1729558254725,-198276.30000587,0.0005868,120]
[340631860,1729558254736,-55625.94710524,0.0005868,120]
[340631861,1729558254747,-4996.95801704,0.0005868,120]
[340631862,1729558254759,-1700.07453171,0.0005868,120]
[340631863,1729558254770,-112740.08865331,0.0005868,120]
[340631864,1729558254782,-1387.48853294,0.0005868,120]
[340631865,1729558254819,-70791.99999999,0.0005868,120]
[340631866,1729558254834,-668.0,0.0005868,120]
[340631867,1729558254845,-1041.25229512,0.0005868,120]
[340631868,1729558254857,-3412.963414,0.0005868,120]
[340631869,1729558254867,-279.58164062,0.0005868,120]
[340631870,1729558254934,-13149.3167592,0.0005868,120]
[340631871,1729558254946,-12854.29632384,0.0005868,120]
[340631872,1729558254957,-1733.22434633,0.0005868,120]
[340631873,1729558254969,-1082.61991605,0.0005868,120]
[340631874,1729558254981,-334.5,0.0005868,120]
[340631875,1729558254992,-2622.50711668,0.0005868,120]
[340631876,1729558255003,-2604.9921,0.0005868,120]
[340631877,1729558255015,-850.00918047,0.0005868,120]
[340631878,1729558255026,-287.88767852,0.0005868,120]
[340631879,1729558255038,-335.451,0.0005868,120]
[340631880,1729558255049,-359.59283247,0.0005868,120]
[340631881,1729558255060,-5199.98291754,0.0005868,120]
[340631882,1729558255071,-792.08079427,0.0005868,120]
[340631883,1729558255083,-71399.99464599,0.0005868,120]
[340631884,1729558255095,-450.13191833,0.0005868,120]
[340631885,1729558255106,-202093.97459285,0.0005868,120]
[340631886,1729558255117,-264.37005527,0.0005868,120]
[340631887,1729558255128,-1130.07324647,0.0005868,120]
[340631888,1729558255139,-6568.49325816,0.0005868,120]
[340631889,1729558255151,-605.342,0.0005868,120]
[340631891,1729558309332,250.0,0.0001,2]
[340631892,1729558310359,300.0,0.00012,2]
[340631893,1729558311433,350.0,0.00014,2]
[340631895,1729558900888,187.43,0.00010959,2]
[340631911,1729559422044,163.76,0.00010959,2]
[340631921,1729559431684,-150.0,0.00015871,2]
[340631922,1729559431694,-500.0,0.00015986,2]
[340631923,1729559431703,-500.0,0.00015986,2]
[340631924,1729559431712,-300.0,0.00015998,2]
[340631925,1729559431722,-79.44484971,0.00015998,2]
[340631926,1729559431733,-672.50464293,0.00015998,2]
[340631927,1729559431765,-12885.32264183,0.00015998,2]
[340631928,1729559431774,-300.0,0.00015999,2]
[340631929,1729559431787,-400.0,0.00016,2]
[340631930,1729559431796,-457.0,0.00017,2]
[340631931,1729559431806,-420.0,0.00017491,2]
[340631932,1729559431815,-209.0,0.00017492,2]
[340631933,1729559431826,-450.0,0.00018,2]
[340631934,1729559431836,-499.99,0.00018,2]
[340631935,1729559431845,-150.99,0.00018,2]
[340631936,1729559431856,-228.71431238,0.00019123,2]
[340631937,1729559431868,-834.06811505,0.00019123,2]
[340631938,1729559431889,-740.43757257,0.00019123,2]
[340631939,1729559431899,-587.0,0.00019124,2]
[340631940,1729559431908,-500.0,0.0002,2]
[340631941,1729559431917,-193.0,0.00020909,2]
[340631942,1729559431926,-550.0,0.00022,2]
[340631943,1729559431936,-205.0,0.00023,2]
[340631944,1729559431945,-600.0,0.00024,2]
[340631945,1729559431955,-199.18811863,0.00032877,2]
[340631946,1729559431964,-300.0,0.00035,120]
[340631947,1729559431974,-279.59,0.00037185,2]
[340631948,1729559431983,-1201.36,0.00037612,2]
[340631949,1729559431992,-250.0,0.00038189,2]
[340631950,1729559432002,-500.0,0.00038256,2]
[340631952,1729559432012,-279.59,0.00039449,2]
[340631954,1729559432022,-150.0,0.00039999,4]
[340631956,1729559432031,-426.055,0.0004,56]
[340631958,1729559432041,-1000.0,0.00041,120]
[340631960,1729559432050,-8863.0,0.00041158,2]
[340631962,1729559432059,-243.18,0.00041158,2]
[340631964,1729559432069,-177.72,0.00041158,120]
[340631966,1729559432078,-250.0,0.00041158,120]
[340631968,1729559432087,-250.0,0.00041158,2]
[340631970,1729559432097,-1585.3,0.00041158,2]
[340631972,1729559432107,-155.4,0.00041158,2]
[340631974,1729559432117,-1586.13,0.00041158,2]
[340631976,1729559432126,-161.14,0.00041377,120]
[340631978,1729559432135,-181.21,0.00041587,120]
[340631980,1729559432145,-23900.0,0.00041607,2]
[340631982,1729559432155,-279.59,0.00041713,2]
[340631984,1729559432165,-1491.59,0.00041726,2]
[340631986,1729559432175,-1000.0,0.00042,120]
[340631988,1729559432185,-1000.0,0.0004246,2]
[340631990,1729559432195,-163.76,0.00042466,2]
[340631992,1729559432205,-373.991992,0.00042709,30]
[340631994,1729559432214,-1100.0,0.00043,120]
[340631996,1729559432224,-252.81317066,0.00043232,2]
[340631998,1729559432235,-373.991992,0.00043243,30]
[340632000,1729559432245,-373.991992,0.00043777,30]
[340632002,1729559432255,-279.59,0.00043976,2]
[340632004,1729559432264,-1000.0,0.00044,120]
[340632006,1729559432274,-373.991992,0.00044311,30]
[340632008,1729559432283,-373.991992,0.00044845,30]
[340632010,1729559432292,-200.0,0.00045,120]
[340632012,1729559432302,-200.0,0.00045,60]
[340632014,1729559432311,-1000.0,0.00045,120]
[340632016,1729559432320,-156.47,0.00045313,2]
[340632018,1729559432330,-1000.0,0.00046,120]
[340632020,1729559432339,-279.59,0.0004624,2]
[340632022,1729559432350,-4194.9611,0.00046275,2]
[340632024,1729559432359,-500.0,0.00046575,120]
[340632026,1729559432367,-500.0,0.00046575,60]
[340632028,1729559432376,-203.29,0.00046829,120]
[340632030,1729559432386,-500.0,0.00046848,120]
[340632032,1729559432396,-500.0,0.00046848,120]
[340632034,1729559432407,-500.0,0.00046848,120]
[340632036,1729559432416,-500.0,0.00046848,120]
[340632038,1729559432427,-500.0,0.00046849,120]
[340632040,1729559432436,-1000.0,0.00047,120]
[340632042,1729559432445,-353.84969238,0.00047122,120]
[340632044,1729559432455,-500.0,0.00047122,120]
[340632046,1729559432464,-472.28028053,0.00047123,120]
[340632048,1729559432474,-2458.2569,0.00047371,2]
[340632050,1729559432483,-646.87339207,0.00047396,120]
[340632052,1729559432493,-1724.4573,0.00047471,2]
[340632054,1729559432504,-42501.2506,0.00047471,2]
[340632056,1729559432514,-633.2,0.00047471,2]
[340632057,1729559432523,-1901.4562,0.00047471,2]
[340632058,1729559432533,-213.8018,0.00047471,2]
[340632059,1729559432542,-982.0178,0.00047471,2]
[340632060,1729559432552,-59794.6098,0.00047471,2]
[340632061,1729559432562,-2505.3765,0.00047471,2]